[Event "Turkish Women-ch Arzum 2022"]
[Site "Ayvalik"]
[Date "2022.03.10"]
[Round "8.16"]
[White "Kucuk, Aybike"]
[Black "Yalcin, Fahriye Zeynep"]
[Result "1/2-1/2"]
[ECO "A17"]
[WhiteElo "1439"]
[BlackElo "1260"]
[Annotator "NA RC"]
[PlyCount "138"]
[EventDate "2022.03.04"]
[EventType "swiss"]
[EventCountry "TUR"]
[SourceTitle "playchess.com"]
[Source "ChessBase"]
[SourceQuality "1"]
[TimeControl "5400+30"]

1. c4 e6 2. Nc3 {[%emt 0:01:30]} Bb4 {[%emt 0:02:30]} 3. g3 {[%emt 0:00:30]} Nf6 {[%emt 0:00:30]} 4. Bg2 {[%emt 0:00:30]} c5 {[%emt 0:01:30]} 5. e3 {[%emt 0:01:30]} Bxc3 {[%emt 0:06:30]} 6. bxc3 {[%emt 0:00:30]} d5 {[%emt 0:05:30]} 7. cxd5 {[%emt 0:00:30]} Nxd5 {[%emt 0:00:30]} 8. Ne2 {[%emt 0:04:30]} Nd7 {[%emt 0:04:30]} 9. d4 {[%emt 0:03:30]} Qb6 {[%emt 0:25:30]} 10. O-O {[%emt 0:00:30]} O-O {[%emt 0:02:30]} 11. c4 {[%emt 0:06:30]} N5f6 {[%emt 0:02:30]} 12. a4 {[%emt 0:03:30]} Qc7 {[%emt 0:02:30]} 13. Ba3 {[%emt 0:03:30]} Rd8 {[%emt 0:02:30]} 14. Qb3 {[%emt 0:01:30]} Rb8 {[%emt 0:01:30]} 15. Rfd1 {[%emt 0:02:30]} b6 {[%emt 0:01:30]} 16. Rab1 {[%emt 0:05:30]} Ba6 {[%emt 0:04:30]} 17. Rbc1 {[%emt 0:01:30]} Rbc8 {[%emt 0:02:30]} 18. Nc3 {[%emt 0:04:30]} cxd4 {[%emt 0:03:30]} 19. Nb5 {[%emt 0:00:30]} Bxb5 {[%emt 0:09:30]} 20. cxb5 {[%emt 0:00:00]} Nc5 {[%emt 0:00:30]} 21. Bxc5 {[%emt 0:04:00]} bxc5 {[%emt 0:00:30]} 22. exd4 {[%emt 0:01:30]} c4 {[%emt 0:00:30]} 23. Qb4 {[%emt 0:03:30]} Nd5 {[%emt 0:00:37]} 24. Bxd5 {[%emt 0:01:30]} Rxd5 {[%emt 0:02:05]} 25. a5 {[%emt 0:01:30]} Rd6 {[%emt 0:01:46]} 26. Rd2 {[%emt 0:08:30]} h6 {[%emt 0:02:08]} 27. Rdd1 {[%emt 0:05:30]} Kh8 {[%emt 0:01:42]} 28. Rd2 {[%emt 0:08:30]} Kg8 {[%emt 0:00:21]} 29. f4 {[%emt 0:06:30]} f6 {[%emt 0:06:47]} 30. Rdd1 {[%emt 0:03:25]} Kf7 {[%emt 0:02:07]} 31. Rd2 {[%emt 0:06:52]} Kg8 {[%emt 0:03:27]} 32. Rdd1 {[%emt 0:04:59]} Kf7 {[%emt 0:00:24]} 33. h3 {[%emt 0:01:14]} h5 {[%emt 0:00:47]} 34. Rc3 {[%emt 0:02:28]} g6 {[%emt 0:02:34]} 35. Rd2 {[%emt 0:01:11]} Kg7 {[%emt 0:00:29]} 36. Rd1 {[%emt 0:01:07]} Kf7 {[%emt 0:00:11]} 37. Rcc1 {[%emt 0:01:14]} Kg7 {[%emt 0:00:49]} 38. Rxc4 {[%emt 0:02:02]} Qxc4 {[%emt 0:00:30]} 39. Qxd6 {[%emt 0:00:00]} Qc3 {[%emt 0:00:38]} 40. Qe7+ {[%emt 0:01:09]} Kh6 {[%emt 0:00:19]} 41. Rf1 {[%emt 0:00:32]} Qxg3+ {[%emt 0:00:09]} 42. Kh1 {[%emt 0:00:22]} Qxh3+ {[%emt 0:00:30]} 43. Kg1 {[%emt 0:00:00]} Qe3+ {[%emt 0:01:15]} 44. Kh1 {[%emt 0:00:01]} Qe4+ {[%emt 0:00:32]} 45. Kg1 {[%emt 0:00:51]} Qxd4+ {[%emt 0:00:30]} 46. Kh1 {[%emt 0:00:00]} Qd5+ {[%emt 0:00:13]} 47. Kg1 {[%emt 0:00:00]} Qxb5 {[%emt 0:00:45]} 48. Qxf6 {[%emt 0:01:00]} Qc5+ {[%emt 0:00:19]} 49. Kh1 {[%emt 0:00:53]} Qd5+ {[%emt 0:00:30]} 50. Kg1 {[%emt 0:00:00]} Rg8 {[%emt 0:00:51]} 51. Qf7 {[%emt 0:01:30]} Rg7 {[%emt 0:00:18]} 52. Qf8 {[%emt 0:00:33]} Qd4+ {[%emt 0:00:29]} 53. Kh1 {[%emt 0:00:01]} h4 {[%emt 0:00:51]} 54. Kg2 {[%emt 0:01:10]} Qe4+ {[%emt 0:00:22]} 55. Kh3 {[%emt 0:00:26]} Qf5+ {[%emt 0:00:50]} 56. Qxf5 {[%emt 0:00:30]} gxf5 {[%emt 0:00:00]} 57. Kxh4 {[%emt 0:00:23]} Kg6 {[%emt 0:00:00]} 58. Kg3 {[%emt 0:00:12]} Kf6+ {[%emt 0:00:00]} 59. Kf3 {[%emt 0:00:31]} Rb7 {[%emt 0:00:13]} 60. Rc1 {[%emt 0:00:16]} Rb5 {[%emt 0:00:24]} 61. a6 {[%emt 0:00:22]} Rb6 {[%emt 0:00:25]} 62. Ra1 {[%emt 0:00:04]} Rb3+ {[%emt 0:00:54]} 63. Kf2 {[%emt 0:00:11]} Rb4 {[%emt 0:00:35]} 64. Kf3 {[%emt 0:00:05]} Ke7 {[%emt 0:01:19]} 65. Rh1 {[%emt 0:00:59]} Rb3+ {[%emt 0:00:59]} 66. Kf2 {[%emt 0:00:02]} Rb2+ {[%emt 0:00:18]} 67. Kf3 {[%emt 0:00:04]} Rb3+ {[%emt 0:00:37]} 68. Kf2 {[%emt 0:00:01]} Rb2+ {[%emt 0:00:41]} 69. Ke3 {[%emt 0:00:01]} Rb3+ {[%emt 0:00:00]} 1/2-1/2

[Event "Turkish Women-ch Arzum 2022"]
[Site "Ayvalik"]
[Date "2022.03.10"]
[Round "8.17"]
[White "Sahin, Cagla Yudum"]
[Black "Gulceken, Sumeyye"]
[Result "0-1"]
[ECO "B18"]
[WhiteElo "1162"]
[BlackElo "1591"]
[Annotator "NA RC"]
[PlyCount "60"]
[EventDate "2022.03.04"]
[EventType "swiss"]
[EventCountry "TUR"]
[SourceTitle "playchess.com"]
[Source "ChessBase"]
[SourceQuality "1"]
[TimeControl "5400+30"]

1. e4 c6 2. d4 d5 {[%emt 0:02:30]} 3. Nc3 {[%emt 0:01:00]} dxe4 {[%emt 0:00:30]} 4. Nxe4 {[%emt 0:00:30]} Bf5 {[%emt 0:00:30]} 5. Ng3 {[%emt 0:00:30]} Bg6 {[%emt 0:00:00]} 6. Nh3 {[%emt 0:00:00]} Nd7 {[%emt 0:00:00]} 7. Nf4 {[%emt 0:00:00]} e6 {[%emt 0:00:00]} 8. Bc4 {[%emt 0:01:30]} Bd6 {[%emt 0:01:00]} 9. Nxg6 {[%emt 0:00:30]} hxg6 {[%emt 0:00:30]} 10. Ne4 {[%emt 0:01:30]} Bb8 {[%emt 0:03:30]} 11. h3 {[%emt 0:01:30]} Ngf6 {[%emt 0:01:30]} 12. Nxf6+ {[%emt 0:02:30]} Nxf6 {[%emt 0:00:00]} 13. c3 {[%emt 0:02:30]} Qd6 {[%emt 0:04:00]} 14. Qb3 {[%emt 0:04:30]} b5 {[%emt 0:06:30]} 15. Bd3 {[%emt 0:02:30]} e5 {[%emt 0:07:30]} 16. Be3 {[%emt 0:02:30]} e4 {[%emt 0:00:30]} 17. Bc2 {[%emt 0:09:30]} Qe7 {[%emt 0:05:30]} 18. O-O-O {[%emt 0:01:30]} a5 {[%emt 0:04:30]} 19. c4 {[%emt 0:06:30]} a4 {[%emt 0:10:30]} 20. Qc3 {[%emt 0:00:30]} b4 {[%emt 0:00:00]} 21. Qd2 {[%emt 0:00:30]} b3 {[%emt 0:00:00]} 22. Bb1 {[%emt 0:00:30]} a3 {[%emt 0:01:30]} 23. axb3 {[%emt 0:00:30]} a2 {[%emt 0:00:30]} 24. Bxa2 {[%emt 0:01:30]} Rxa2 {[%emt 0:00:30]} 25. Kc2 {[%emt 0:00:30]} Qa3 {[%emt 0:05:30]} 26. Rb1 {[%emt 0:04:30]} Bd6 {[%emt 0:02:30]} 27. Qe2 {[%emt 0:00:30]} O-O {[%emt 0:02:30]} 28. h4 {[%emt 0:03:30]} Rb8 {[%emt 0:00:30]} 29. g4 {[%emt 0:01:30]} Qxb3+ {[%emt 0:00:30]} 30. Kc1 {[%emt 0:00:30]} Ba3 {[%emt 0:00:30]} 0-1

[Event "Turkish Women-ch Arzum 2022"]
[Site "Ayvalik"]
[Date "2022.03.10"]
[Round "8.19"]
[White "Akar, Nilay"]
[Black "Baloglu, Dila"]
[Result "0-1"]
[ECO "C90"]
[WhiteElo "1516"]
[BlackElo "1630"]
[Annotator "NA RC"]
[PlyCount "64"]
[EventDate "2022.03.04"]
[EventType "swiss"]
[EventCountry "TUR"]
[SourceTitle "playchess.com"]
[Source "ChessBase"]
[SourceQuality "1"]
[TimeControl "5400+30"]

1. e4 e5 2. Nf3 Nc6 3. Bb5 a6 4. Ba4 {[%emt 0:01:30]} Nf6 {[%emt 0:01:30]} 5. d3 {[%emt 0:01:30]} b5 {[%emt 0:00:30]} 6. Bb3 {[%emt 0:00:30]} Be7 {[%emt 0:00:00]} 7. O-O {[%emt 0:00:30]} d6 {[%emt 0:01:00]} 8. c3 {[%emt 0:00:00]} O-O {[%emt 0:00:30]} 9. Re1 {[%emt 0:00:00]} Na5 {[%emt 0:00:30]} 10. Bc2 {[%emt 0:00:30]} c5 {[%emt 0:00:30]} 11. Nbd2 {[%emt 0:00:30]} Nc6 {[%emt 0:01:30]} 12. Nf1 {[%emt 0:00:30]} h6 {[%emt 0:02:30]} 13. Ng3 {[%emt 0:01:30]} Be6 {[%emt 0:00:30]} 14. d4 {[%emt 0:02:30]} cxd4 {[%emt 0:01:30]} 15. cxd4 {[%emt 0:01:30]} exd4 {[%emt 0:00:00]} 16. Nxd4 {[%emt 0:00:30]} Nxd4 {[%emt 0:00:00]} 17. Qxd4 {[%emt 0:00:30]} Rc8 {[%emt 0:01:30]} 18. Bb3 {[%emt 0:06:30]} d5 {[%emt 0:07:30]} 19. e5 {[%emt 0:03:30]} Bc5 {[%emt 0:01:30]} 20. Qf4 {[%emt 0:07:30]} Ng4 {[%emt 0:11:30]} 21. Re2 {[%emt 0:04:30]} f6 {[%emt 0:04:30]} 22. Nf5 {[%emt 0:15:30]} fxe5 {[%emt 0:23:30]} 23. Qxg4 {[%emt 0:04:30]} Rxf5 {[%emt 0:01:30]} 24. Qg3 {[%emt 0:06:30]} Qf6 {[%emt 0:02:30]} 25. Bd2 {[%emt 0:03:30]} Rf8 {[%emt 0:04:30]} 26. Rf1 {[%emt 0:02:30]} e4 {[%emt 0:03:30]} 27. Bc3 {[%emt 0:04:30]} d4 {[%emt 0:03:30]} 28. Be1 {[%emt 0:12:30]} e3 {[%emt 0:03:30]} 29. Rc2 {[%emt 0:06:19]} Rg5 {[%emt 0:05:37]} 30. Qc7 {[%emt 0:01:44]} Bxb3 {[%emt 0:00:55]} 31. Rxc5 {[%emt 0:01:46]} Rxc5 {[%emt 0:01:35]} 32. Qxc5 {[%emt 0:02:12]} Bc4 {[%emt 0:00:12]} 0-1

[Event "Turkish Women-ch Arzum 2022"]
[Site "Ayvalik"]
[Date "2022.03.10"]
[Round "8.20"]
[White "Turunz, Dilek"]
[Black "Yurdakul, Didem Nuray"]
[Result "0-1"]
[ECO "B06"]
[WhiteElo "1443"]
[BlackElo "1804"]
[Annotator "NA RC"]
[PlyCount "94"]
[EventDate "2022.03.04"]
[EventType "swiss"]
[EventCountry "TUR"]
[SourceTitle "playchess.com"]
[Source "ChessBase"]
[SourceQuality "1"]
[TimeControl "5400+30"]

1. e4 c5 2. c3 d5 3. exd5 Qxd5 4. d4 g6 5. Nf3 Bg7 {[%emt 0:01:00]} 6. Na3 {[%emt 0:02:30]} cxd4 {[%emt 0:00:30]} 7. Bc4 {[%emt 0:01:30]} Qe4+ {[%emt 0:00:00]} 8. Be3 {[%emt 0:00:30]} Nh6 {[%emt 0:00:00]} 9. Nb5 {[%emt 0:03:30]} O-O {[%emt 0:02:30]} 10. cxd4 {[%emt 0:07:30] 10.Bd3 is not played anymore.} Na6 {[%emt 0:02:30]} (10... Nf5 $11) 11. Nc3 {[%emt 0:00:30]} (11. Qb3 $1 $14) 11... Qc6 {[%emt 0:00:30]} 12. Qb3 {[%emt 0:10:30]} Nf5 {[%emt 0:07:30]} 13. O-O {[%emt 0:01:30]} Nd6 {[%emt 0:04:30]} 14. Bd5 {[%emt 0:03:30]} Qe8 {[%emt 0:01:30] [#]} 15. Bf4 $146 {[%emt 0:08:30]} ({Predecessor:} 15. Rfe1 Nc7 16. Bf4 Qd8 17. Bg5 Re8 18. Rac1 Bg4 19. Ne5 Be6 20. Bxe6 Nxe6 21. Nxf7 Nxf7 22. Qxe6 Qxd4 {½-½ (30) Schellmann,F (2110)-Ross,C (2231) Chennai 2012}) 15... Qd8 {[%emt 0:03:30]} 16. Qa3 {[%emt 0:08:30]} Nb5 {[%emt 0:02:30]} 17. Bxf7+ {[%emt 0:03:30]} Rxf7 {[%emt 0:04:30]} 18. Nxb5 {[%emt 0:02:30]} Rxf4 {[%emt 0:00:30]} 19. Qb3+ $19 {[%emt 0:00:30]} e6 {[%emt 0:00:30]} 20. Rad1 {[%emt 0:02:30]} Qd5 {[%emt 0:01:30]} 21. Qe3 {[%emt 0:02:30]} Re4 {[%emt 0:11:30]} 22. Qg5 {[%emt 0:01:30]} Qxg5 {[%emt 0:01:30]} 23. Nxg5 {[%emt 0:00:30]} Re2 {[%emt 0:00:30]} 24. Nd6 {[%emt 0:00:30]} h6 {[%emt 0:00:30]} 25. Nf3 {[%emt 0:01:30]} Rxb2 {[%emt 0:00:00]} 26. Rfe1 {[%emt 0:00:30]} Rxa2 {[%emt 0:03:00]} 27. Nxc8 {[%emt 0:01:30]} Rxc8 {[%emt 0:00:30]} 28. Rxe6 {[%emt 0:00:00]} Kf7 {[%emt 0:02:30]} 29. Rde1 {[%emt 0:01:00]} Rc7 {[%emt 0:00:30]} 30. d5 {[%emt 0:01:30]} Nc5 {[%emt 0:00:30]} 31. R6e3 {[%emt 0:03:30]} Ra6 {[%emt 0:01:30]} 32. Rc1 {[%emt 0:01:30]} Rd6 {[%emt 0:00:00]} 33. Re2 {[%emt 0:02:30]} Rxd5 {[%emt 0:00:00]} 34. Rec2 {[%emt 0:00:30]} b6 {[%emt 0:00:30]} 35. Kf1 {[%emt 0:00:30]} Rcd7 {[%emt 0:00:00]} 36. Ke2 {[%emt 0:00:30]} Nd3 {[%emt 0:00:00]} 37. Rb1 {[%emt 0:00:30]} Nf4+ {[%emt 0:00:30]} 38. Ke1 {[%emt 0:01:30]} Nxg2+ {[%emt 0:00:30]} 39. Kf1 {[%emt 0:00:00]} Nf4 {[%emt 0:00:00]} 40. Ke1 {[%emt 0:00:00]} b5 {[%emt 0:00:00]} 41. Ra2 {[%emt 0:00:30]} b4 {[%emt 0:00:30]} 42. Rc2 {[%emt 0:03:30]} b3 {[%emt 0:00:30]} 43. Rc4 {[%emt 0:00:00]} g5 {[%emt 0:00:30]} 44. h4 {[%emt 0:00:00]} b2 {[%emt 0:00:00]} 45. hxg5 {[%emt 0:01:30]} Rd1+ {[%emt 0:00:00]} 46. Rxd1 {[%emt 0:00:00]} Rxd1+ {[%emt 0:00:30]} 47. Kxd1 {[%emt 0:00:00]} b1=Q+ {[%emt 0:00:00]} 0-1

[Event "Turkish Women-ch Arzum 2022"]
[Site "Ayvalik"]
[Date "2022.03.10"]
[Round "8.22"]
[White "Gedik, Eylul Ceren"]
[Black "Yilmaz, Gokcen"]
[Result "1-0"]
[ECO "B77"]
[WhiteElo "1282"]
[BlackElo "1647"]
[Annotator "NA RC"]
[PlyCount "53"]
[EventDate "2022.03.04"]
[EventType "swiss"]
[EventCountry "TUR"]
[SourceTitle "playchess.com"]
[Source "ChessBase"]
[SourceQuality "1"]
[TimeControl "5400+30"]

1. e4 c5 2. Nf3 {[%emt 0:00:30]} d6 {[%emt 0:02:30]} 3. d4 {[%emt 0:00:30]} cxd4 {[%emt 0:00:30]} 4. Nxd4 {[%emt 0:00:00]} Nf6 {[%emt 0:00:30]} 5. Nc3 {[%emt 0:00:00]} g6 {[%emt 0:00:30]} 6. Be3 {[%emt 0:00:00]} Bg7 {[%emt 0:01:30]} 7. f3 {[%emt 0:00:00]} O-O {[%emt 0:00:30]} 8. Qd2 {[%emt 0:00:30]} Nc6 {[%emt 0:00:00]} 9. Bc4 {[%emt 0:00:30]} Bd7 {[%emt 0:00:00]} 10. O-O-O {[%emt 0:00:00]} Rb8 {[%emt 0:00:00]} 11. Bb3 {[%emt 0:05:00]} Na5 {[%emt 0:01:00]} 12. g4 {[%emt 0:03:30]} b5 {[%emt 0:00:30]} 13. h4 {[%emt 0:02:30]} Nc4 {[%emt 0:02:30]} 14. Bxc4 {[%emt 0:03:30]} bxc4 {[%emt 0:00:30]} 15. Kb1 {[%emt 0:02:30]} Qa5 {[%emt 0:01:30]} 16. Ka1 {[%emt 0:10:30]} Qb4 {[%emt 0:17:30]} 17. Rb1 {[%emt 0:01:30]} Rb6 {[%emt 0:05:30]} 18. Bh6 {[%emt 0:13:30]} Bxh6 {[%emt 0:04:30]} 19. Qxh6 {[%emt 0:00:00]} Ra6 {[%emt 0:00:30]} 20. h5 {[%emt 0:13:00]} Rb8 {[%emt 0:00:30]} 21. hxg6 {[%emt 0:01:30]} fxg6 {[%emt 0:00:30]} 22. g5 {[%emt 0:03:30]} Nh5 {[%emt 0:01:30]} 23. Nf5 {[%emt 0:02:30]} Bxf5 {[%emt 0:00:30]} 24. exf5 {[%emt 0:00:00]} d5 {[%emt 0:00:00]} 25. Rxh5 {[%emt 0:02:00]} gxh5 {[%emt 0:02:00]} 26. Qxa6 {[%emt 0:08:30]} Rb6 {[%emt 0:02:30]} 27. Qc8+ {[%emt 0:02:30]} 1-0

[Event "Turkish Women-ch Arzum 2022"]
[Site "Ayvalik"]
[Date "2022.03.10"]
[Round "8.23"]
[White "Oztatar, Meleknaz"]
[Black "Tanir, Simay"]
[Result "0-1"]
[ECO "A84"]
[WhiteElo "1063"]
[BlackElo "1510"]
[Annotator "NA RC"]
[PlyCount "96"]
[EventDate "2022.03.04"]
[EventType "swiss"]
[EventCountry "TUR"]
[SourceTitle "playchess.com"]
[Source "ChessBase"]
[SourceQuality "1"]
[TimeControl "5400+30"]

1. d4 f5 2. c4 e6 3. e3 Nf6 4. Bd3 {[%emt 0:01:30]} c6 {[%emt 0:02:30]} 5. Nc3 {[%emt 0:00:30]} d5 {[%emt 0:00:00]} 6. Nge2 {[%emt 0:00:30]} Bd6 {[%emt 0:01:00]} 7. f3 {[%emt 0:00:30]} O-O {[%emt 0:02:30]} 8. Qc2 {[%emt 0:00:30]} Na6 {[%emt 0:08:30]} 9. a3 {[%emt 0:04:30]} Nc7 {[%emt 0:03:30]} 10. Bd2 {[%emt 0:03:30]} dxc4 {[%emt 0:07:30]} 11. Bxc4 {[%emt 0:01:30]} Kh8 {[%emt 0:04:30]} 12. O-O {[%emt 0:07:30]} e5 {[%emt 0:08:30]} 13. dxe5 {[%emt 0:15:30]} Bxe5 {[%emt 0:00:30]} 14. Rad1 {[%emt 0:12:30]} Qe7 {[%emt 0:05:30]} 15. Kh1 {[%emt 0:12:30]} Nfd5 {[%emt 0:06:30]} 16. e4 {[%emt 0:04:30]} Nxc3 {[%emt 0:08:30]} 17. Bxc3 {[%emt 0:05:30]} Bxc3 {[%emt 0:02:30]} 18. Qxc3 {[%emt 0:00:30]} fxe4 {[%emt 0:02:30]} 19. fxe4 {[%emt 0:01:30]} Bg4 {[%emt 0:02:30]} 20. h3 {[%emt 0:05:30]} Bxe2 {[%emt 0:13:47]} 21. Bxe2 {[%emt 0:00:30]} Qxe4 {[%emt 0:00:14]} 22. Rd7 {[%emt 0:00:30]} Rxf1+ {[%emt 0:04:57]} 23. Bxf1 {[%emt 0:00:30]} Ne6 {[%emt 0:01:53]} 24. Bd3 {[%emt 0:03:14]} Qe3 {[%emt 0:02:09]} 25. Rxb7 {[%emt 0:00:23]} Rd8 {[%emt 0:01:19]} 26. Qxc6 {[%emt 0:02:31]} Qxd3 {[%emt 0:04:33]} 27. Qf3 {[%emt 0:06:04]} Qxf3 {[%emt 0:00:55]} 28. gxf3 {[%emt 0:00:01]} h6 {[%emt 0:01:07]} 29. Rxa7 {[%emt 0:00:30]} Rd1+ {[%emt 0:00:30]} 30. Kg2 {[%emt 0:00:30]} Rd2+ {[%emt 0:00:00]} 31. Kg3 {[%emt 0:00:00]} Rxb2 {[%emt 0:00:02]} 32. a4 {[%emt 0:00:00]} Nc5 {[%emt 0:00:00]} 33. a5 {[%emt 0:00:00]} Ra2 {[%emt 0:00:26]} 34. Kg4 {[%emt 0:00:50]} Nb3 {[%emt 0:00:38]} 35. a6 {[%emt 0:00:12]} Nc5 {[%emt 0:02:27]} 36. Ra8+ {[%emt 0:00:17]} Kh7 {[%emt 0:00:31]} 37. a7 {[%emt 0:00:07]} Ne6 {[%emt 0:00:00]} 38. Re8 {[%emt 0:01:53]} Nc7 {[%emt 0:00:02]} 39. Re7 {[%emt 0:00:54]} Rxa7 {[%emt 0:00:05]} 40. Kf5 {[%emt 0:00:00]} Ra5+ {[%emt 0:01:10]} 41. Kg4 {[%emt 0:00:43]} Nd5 {[%emt 0:00:10]} 42. Re5 {[%emt 0:00:06]} Nf6+ {[%emt 0:00:59]} 43. Kf5 {[%emt 0:00:27]} Rxe5+ {[%emt 0:01:44]} 44. Kxe5 {[%emt 0:00:30]} Kg6 {[%emt 0:00:00]} 45. Kf4 {[%emt 0:00:15]} Nd7 {[%emt 0:00:08]} 46. Kg4 {[%emt 0:01:45]} Nc5 {[%emt 0:00:49]} 47. f4 {[%emt 0:01:39]} Nd3 {[%emt 0:00:59]} 48. h4 {[%emt 0:00:15]} h5+ {[%emt 0:00:00]} 0-1

[Event "Turkish Women-ch Arzum 2022"]
[Site "Ayvalik"]
[Date "2022.03.10"]
[Round "8.24"]
[White "Buyuk, Elvin Esma"]
[Black "Sezer, Ipek"]
[Result "0-1"]
[ECO "E14"]
[WhiteElo "1326"]
[BlackElo "1329"]
[Annotator "NA RC"]
[PlyCount "78"]
[EventDate "2022.03.04"]
[EventType "swiss"]
[EventCountry "TUR"]
[SourceTitle "playchess.com"]
[Source "ChessBase"]
[SourceQuality "1"]
[TimeControl "5400+30"]

1. d4 Nf6 2. c4 e6 3. Nc3 b6 4. e3 Bb7 {[%emt 0:01:30]} 5. Nf3 {[%emt 0:02:00]} Be7 {[%emt 0:00:30]} 6. Bd3 {[%emt 0:00:30]} d5 {[%emt 0:01:30]} 7. O-O {[%emt 0:02:30]} Nbd7 {[%emt 0:00:30]} 8. b3 {[%emt 0:01:30]} O-O {[%emt 0:00:30]} 9. Bb2 {[%emt 0:02:30]} c5 {[%emt 0:04:30]} 10. cxd5 {[%emt 0:05:30]} exd5 {[%emt 0:02:30]} 11. Nd2 {[%emt 0:03:30]} h5 {[%emt 0:04:30]} 12. f4 {[%emt 0:08:30]} Re8 {[%emt 0:06:30]} 13. Nf3 {[%emt 0:11:30]} Ng4 {[%emt 0:03:30]} 14. Bc1 {[%emt 0:02:30]} Rc8 {[%emt 0:09:30]} 15. Ne2 {[%emt 0:12:30]} Nf8 {[%emt 0:12:30]} 16. Ne5 {[%emt 0:01:30]} Bd6 {[%emt 0:05:30]} 17. Bf5 {[%emt 0:15:30]} Ne6 {[%emt 0:02:30]} 18. Nxg4 {[%emt 0:00:30]} hxg4 {[%emt 0:00:30]} 19. Bxg4 {[%emt 0:00:30]} Ba6 {[%emt 0:00:30]} 20. Rf2 {[%emt 0:09:51]} Rc7 {[%emt 0:03:30]} 21. Bxe6 {[%emt 0:04:04]} Rxe6 {[%emt 0:00:30]} 22. dxc5 {[%emt 0:00:56]} Bxc5 {[%emt 0:01:30]} 23. Nd4 {[%emt 0:00:05]} Re4 {[%emt 0:02:30]} 24. Qg4 {[%emt 0:05:12]} Bxd4 {[%emt 0:01:30]} 25. Rb1 {[%emt 0:05:41]} Bd3 {[%emt 0:01:30]} 26. Rfb2 {[%emt 0:01:06]} Rxc1+ {[%emt 0:01:30]} 27. Rxc1 {[%emt 0:00:07]} Bxe3+ {[%emt 0:00:30]} 28. Rf2 {[%emt 0:00:38]} Bxc1 {[%emt 0:00:30]} 29. Qd1 {[%emt 0:00:08]} Be3 {[%emt 0:00:30]} 30. Qxd3 {[%emt 0:00:02]} Bxf2+ {[%emt 0:00:30]} 31. Kxf2 {[%emt 0:00:03]} Rxf4+ {[%emt 0:01:30]} 32. Kg1 {[%emt 0:00:35]} Qc7 {[%emt 0:00:30]} 33. h3 {[%emt 0:00:16]} Qc5+ {[%emt 0:01:30]} 34. Kh2 {[%emt 0:00:04]} Rd4 {[%emt 0:00:30]} 35. Qg3 {[%emt 0:00:27]} Rd1 {[%emt 0:01:30]} 36. Qb8+ {[%emt 0:00:08]} Kh7 {[%emt 0:00:30]} 37. Kg3 {[%emt 0:02:12]} Qe3+ {[%emt 0:00:30]} 38. Kh2 {[%emt 0:01:22]} Rf1 {[%emt 0:04:30]} 39. Qg3 {[%emt 0:02:02]} Qg1# {[%emt 0:00:00]} 0-1

[Event "Turkish Women-ch Arzum 2022"]
[Site "Ayvalik"]
[Date "2022.03.10"]
[Round "8.25"]
[White "Aksoy, Duru"]
[Black "Gur, Tuba"]
[Result "0-1"]
[ECO "B22"]
[WhiteElo "1223"]
[BlackElo "1750"]
[Annotator "NA RC"]
[PlyCount "128"]
[EventDate "2022.03.04"]
[EventType "swiss"]
[EventCountry "TUR"]
[SourceTitle "playchess.com"]
[Source "ChessBase"]
[SourceQuality "1"]
[TimeControl "5400+30"]

1. e4 c5 2. c3 d5 3. exd5 Qxd5 4. Na3 {[%emt 0:01:30]} Nf6 {[%emt 0:02:30]} 5. Nf3 {[%emt 0:00:30]} Bg4 {[%emt 0:01:30]} 6. Be2 {[%emt 0:00:00]} Nc6 {[%emt 0:00:00]} 7. d4 {[%emt 0:01:00]} cxd4 {[%emt 0:02:00]} 8. Nb5 {[%emt 0:00:30]} Qd7 {[%emt 0:01:30]} 9. Nbxd4 {[%emt 0:05:30]} Nxd4 {[%emt 0:08:30]} 10. Nxd4 {[%emt 0:01:30]} e5 {[%emt 0:06:30]} 11. Bxg4 {[%emt 0:06:30]} Nxg4 {[%emt 0:01:30]} 12. Qe2 {[%emt 0:03:30]} Bc5 {[%emt 0:03:30]} 13. h3 {[%emt 0:07:30]} O-O {[%emt 0:06:30]} 14. hxg4 {[%emt 0:08:30]} exd4 {[%emt 0:00:00]} 15. Qd3 {[%emt 0:02:30]} Rae8+ {[%emt 0:01:00]} 16. Be3 {[%emt 0:02:30]} g6 {[%emt 0:01:30]} 17. cxd4 {[%emt 0:08:30]} Qxd4 {[%emt 0:02:30]} 18. Qxd4 {[%emt 0:03:30]} Bxd4 {[%emt 0:00:30]} 19. Ke2 {[%emt 0:02:30]} f5 {[%emt 0:09:30]} 20. gxf5 {[%emt 0:03:30]} Rxf5 {[%emt 0:00:30]} 21. Rad1 {[%emt 0:02:30]} Bxb2 {[%emt 0:06:30]} 22. Rb1 {[%emt 0:07:30]} Bg7 {[%emt 0:04:30]} 23. Rxb7 {[%emt 0:04:30]} Ra5 {[%emt 0:00:00]} 24. Rd1 {[%emt 0:01:30]} Rxa2+ {[%emt 0:03:00]} 25. Rd2 {[%emt 0:00:30]} Rxd2+ {[%emt 0:01:30]} 26. Kxd2 {[%emt 0:00:00]} a5 {[%emt 0:00:30]} 27. Ra7 {[%emt 0:01:00]} Bf8 {[%emt 0:00:30]} 28. Bb6 {[%emt 0:01:30]} Bb4+ {[%emt 0:00:30]} 29. Kd3 {[%emt 0:00:30]} Re5 {[%emt 0:04:30]} 30. Bd4 {[%emt 0:04:30]} Re7 {[%emt 0:06:30]} 31. Ra6 {[%emt 0:02:30]} Rd7 {[%emt 0:03:30]} 32. Kc4 {[%emt 0:02:19]} Kf7 {[%emt 0:03:30]} 33. Bb6 {[%emt 0:06:27]} h5 {[%emt 0:05:09]} 34. Bd4 {[%emt 0:02:40]} Rd6 {[%emt 0:00:59]} 35. Ra7+ {[%emt 0:00:55]} Ke6 {[%emt 0:00:30]} 36. Rg7 {[%emt 0:00:26]} Rc6+ {[%emt 0:03:00]} 37. Kb3 {[%emt 0:00:50]} Kd5 {[%emt 0:00:58]} 38. Bb2 {[%emt 0:01:20]} Be1 {[%emt 0:00:47]} 39. f3 {[%emt 0:00:56]} Rb6+ {[%emt 0:01:01]} 40. Kc2 {[%emt 0:00:31]} Kc4 {[%emt 0:00:45]} 41. Re7 {[%emt 0:01:01]} Bb4 {[%emt 0:01:14]} 42. Re4+ {[%emt 0:01:04]} Kb5 {[%emt 0:00:45]} 43. Re5+ {[%emt 0:01:42]} Bc5 {[%emt 0:04:13]} 44. Bd4 {[%emt 0:01:31]} Rc6 {[%emt 0:00:29]} 45. Rg5 {[%emt 0:00:52]} Kb6 {[%emt 0:00:13]} 46. Kd3 {[%emt 0:00:03]} Bxd4 {[%emt 0:01:13]} 47. Kxd4 {[%emt 0:00:06]} a4 {[%emt 0:00:44]} 48. Re5 {[%emt 0:00:22]} a3 {[%emt 0:01:10]} 49. Re2 {[%emt 0:00:42]} Kb5 {[%emt 0:00:35]} 50. g3 {[%emt 0:02:14]} Kb4 {[%emt 0:00:15]} 51. Kd5 {[%emt 0:00:09]} Rc3 {[%emt 0:00:41]} 52. Re8 {[%emt 0:00:53]} a2 {[%emt 0:00:16]} 53. Rb8+ {[%emt 0:00:14]} Ka3 {[%emt 0:00:08]} 54. Kd4 {[%emt 0:00:13]} Rb3 {[%emt 0:00:22]} 55. Ra8+ {[%emt 0:00:42]} Kb2 {[%emt 0:00:32]} 56. Kc4 {[%emt 0:00:17]} Ra3 {[%emt 0:00:07]} 57. Rb8+ {[%emt 0:01:06]} Kc2 {[%emt 0:00:05]} 58. Re8 {[%emt 0:00:00]} a1=Q {[%emt 0:00:47]} 59. Re2+ {[%emt 0:00:35]} Kd1 {[%emt 0:00:06]} 60. Rf2 {[%emt 0:00:00]} Qc3+ {[%emt 0:00:23]} 61. Kb5 {[%emt 0:00:30]} Ra5+ {[%emt 0:00:30]} 62. Kb6 {[%emt 0:00:00]} Qc5+ {[%emt 0:00:13]} 63. Kb7 {[%emt 0:00:17]} Ra7+ {[%emt 0:00:30]} 64. Kb8 {[%emt 0:00:30]} Qc7# {[%emt 0:00:00]} 0-1